Cogmind - Beta 11.1 *** ADVENTURER MODE // 2022.09.20 @ 21:02:40 Player: yub Result: Destroyed by G-50 Soldier with Heavy Laser Performance ------------- Evolutions (5) 2500 Regions Visited (10) 2000 Robots Destroyed (69) 345 Value Destroyed (2788) 2788 Prototype IDs (30) 600 Alien Tech Used (0) 0 Bonus (910) 910 TOTAL SCORE: 9143 Bonus ------- High Alert Combat Kills 77 Follower Combat Kills 33 Entered DSFs 500 Aligned with FarCom 300 Cogmind --------- Core Integrity 0/1000 Matter 51/300 Energy 90/290 System Corruption 0% Temperature Warm (121) Movement Core (200) Ox3 Location -5/Factory Parts ------- > --- POWER (2) -------- Improved Deuterium Engine > --- PROPULSION (4) --- (None) > --- UTILITY (8) ------ (None) > --- WEAPON (3) ------- (None) > --- INVENTORY (5) ---- Machine Analyzer Terrain Scan Processor Focal Shield Hacking Suite Peak State ------------ > --- POWER ------------ Light Deuterium Engine Light Nuclear Core > --- PROPULSION ------- Gravmag System Improved Gravmag System Improved Cesium-ion Thruster > --- UTILITY ---------- Large Storage Unit High-capacity Matter Pod Advanced Sensor Array Advanced Signal Interpreter Advanced ECM Suite Drone Bay Sensor Drone Bay > --- WEAPON ----------- Gauss Rifle Improved Heavy Machine Gun Advanced Assault Cannon > --- INVENTORY -------- Improved Hover Unit Gravmag System Thermal Generator Heat Sink Machine Analyzer Visual Processing Unit Active Sensor Suite Energy Filter Particle Charger Hacking Suite System Shield Relay Coupler [Grunt] Drone Bay [Rating: 69] Favorites ----------- Power Light Deuterium Engine Engine Light Deuterium Engine Power Core Micro Nuclear Core Propulsion Light Treads Treads Light Treads Wheel Wheel Hover Unit Gravmag System Flight Unit Improved Cesium-ion Thruster Utility Sensor Drone Bay Device Sensor Drone Bay Storage Large Storage Unit Processor Advanced Signal Interpreter Hackware System Shield Weapon Guided Plasma Cannon Energy Gun Small Laser Energy Cannon Guided Plasma Cannon Ballistic Gun Gauss Rifle Ballistic Cannon Heavy Assault Cannon Launcher Rocket Launcher Special Weapon Mining Laser Build | -11 -10 -10 -10 -9 -8 -8 -7 -7 -6 -5 ------- Run | Scr Mat Min Exi Min Mat Sto Fac DSF Fac Fac Slots Evolved 10 | . . . . . 4 . 2 . 2 2 Power 1 | . . . . . 1 . . . . . Propulsion 2 | . . . . . 1 . . . . 1 Utility 6 | . . . . . 2 . 2 . 1 1 Weapon 1 | . . . . . . . . . 1 . Parts Attached 76 | 6 1 3 1 5 10 4 3 6 29 8 Power 11 | 1 . 1 . . 1 1 . 1 5 1 Engine 5 | 1 . 1 . . . . . 1 1 1 Core 6 | . . . . . 1 1 . . 4 . Reactor . | . . . . . . . . . . . Propulsion 20 | 2 . 1 . 2 2 3 . 2 7 1 Treads 9 | . . 1 . 1 2 3 . 2 . . Leg . | . . . . . . . . . . . Wheel 3 | 2 . . . 1 . . . . . . Hover 7 | . . . . . . . . . 6 1 Flight 1 | . . . . . . . . . 1 . Utility 27 | 1 1 . . 1 3 . 3 2 12 4 Device 20 | . 1 . . 1 1 . 3 2 9 3 Storage 4 | 1 . . . . 1 . . . 1 1 Processor 2 | . . . . . 1 . . . 1 . Hackware 1 | . . . . . . . . . 1 . Protection . | . . . . . . . . . . . Artifact . | . . . . . . . . . . . Weapon 18 | 2 . 1 1 2 4 . . 1 5 2 Energy Gun 3 | 1 . . . . 1 . . . . 1 Energy Cannon 1 | . . . 1 . . . . . . . Ballistic Gun 8 | 1 . 1 . 1 . . . 1 3 1 Ballistic Cannon 2 | . . . . . . . . . 2 . Launcher 3 | . . . . . 3 . . . . . Special Weapon 1 | . . . . 1 . . . . . . Impact Weapon . | . . . . . . . . . . . Slashing Weapon . | . . . . . . . . . . . Piercing Weapon . | . . . . . . . . . . . Special Melee Weapon . | . . . . . . . . . . . Unidentified Prototypes 8 | . . . 1 1 2 . . . 3 1 Parts Lost 35 | . . . . . . . . 2 21 12 Power 7 | . . . . . . . . 1 6 . Propulsion 8 | . . . . . . . . . 5 3 Utility 13 | . . . . . . . . . 8 5 Weapon 7 | . . . . . . . . 1 2 4 Highest Loss Streak 12 | . . . . . . . . 2 9 12 To Critical Strikes 1 | . . . . . . . . . 1 . Average Slot Usage (%) 92 | . 99 100 100 100 98 100 100 97 88 46 Engine 7 | . 14 14 14 14 9 9 7 5 3 . Core 4 | . . . . . 7 9 7 7 6 . Treads 15 | . . 13 14 15 27 27 23 23 12 . Wheel 4 | . 28 14 14 12 . . . . . . Hover 2 | . . . . . . . . . 5 12 Device 23 | . 13 14 14 14 18 18 30 32 32 18 Storage 9 | . 14 14 14 14 9 9 7 7 7 3 Processor 3 | . . . . . 9 9 7 4 3 . Energy Gun 2 | . 14 14 10 . . . . . . . Energy Cannon 5 | . . . 3 14 9 9 7 7 3 . Ballistic Gun 7 | . 14 14 14 11 . . . 4 6 9 Ballistic Cannon 1 | . . . . . . . . . 3 . Launcher 1 | . . . . . 1 9 7 2 . . Naked Turns 2 | . . . . . . . . . . 2 Heaviest Build 84 | 10 11 15 24 37 59 60 62 72 84 23 Greatest Support 64 | 20 20 22 22 42 64 64 60 60 60 25 Greatest Overweight (x) 23 | . . . 1 3 . 2 1 1 23 3 Average Overweight (x) . | . . . . 1 . . 1 . 1 . Largest Inventory Capacity 15 | 8 8 8 8 8 15 15 15 15 15 5 Average Capacity 12 | 6 8 8 8 8 14 15 15 15 14 5 Most Carried 15 | 5 7 8 8 8 15 15 14 15 15 5 Average Carried 10 | 2 3 7 8 7 9 14 13 13 13 4 Final Capacity 15 | 8 8 8 8 8 15 15 15 15 5 5 Final Carried 15 | 1 7 8 8 8 15 15 13 15 4 4 Class Distribution -------------------- 47% | Mutant 26% | Scavenger-Skirmisher 11% | Scavenger-Mutant 7% | Skirmisher 4% | Infiltrator-Mutant Dominant Class ---------------- Mutant | -10/Materials Mutant | -10/Mines Mutant | -10/Exiles Mutant | -9/Mines Mutant | -8/Materials Mutant | -8/Storage Scavenger-Mutant | -7/Factory Scavenger-Mutant | -7/DSF Scavenger-Skirmisher | -6/Factory Scavenger-Scout | -5/Factory Resources | -11 -10 -10 -10 -9 -8 -8 -7 -7 -6 -5 ----------- Run | Scr Mat Min Exi Min Mat Sto Fac DSF Fac Fac Matter Collected 1969 | 104 178 178 . 182 122 161 . 47 946 51 Remotely . | . . . . . . . . . . . Salvage Created 2656 | . 178 100 . 113 80 852 . 377 905 51 Parts 145 | . 3 5 . 11 7 37 . 24 55 3 Haulers Intercepted . | . . . . . . . . . . . Recyclers Shooed . | . . . . . . . . . . . Parts Field Recycled . | . . . . . . . . . . . Retrieved Matter . | . . . . . . . . . . . Parts Self-Destructed . | . . . . . . . . . . . Prevented . | . . . . . . . . . . . Kills | -11 -10 -10 -10 -9 -8 -8 -7 -7 -6 -5 ------- Run | Scr Mat Min Exi Min Mat Sto Fac DSF Fac Fac Combat Hostiles Destroyed 54 | . 2 2 . 5 1 18 . 7 18 1 Guns 13 | . 2 2 . 2 . . . 1 5 1 Cannons 33 | . . . . 3 1 10 . 6 13 . AOE 8 | . . . . . . 8 . . . . Classes Destroyed 12 | . 2 . . 2 1 2 . 1 4 . Worker 5 | . . . . . . 3 . . 2 . Builder 1 | . . . . . . . . . 1 . Recycler 3 | . 1 . . . . 1 . . 1 . Operator 1 | . . . . . . . . . 1 . Watcher 5 | . . . . . 1 1 . . 3 . Swarmer 7 | . . . . 4 . . . . 3 . Grunt 24 | . 2 2 . . . 13 . 6 1 . Duelist 2 | . . . . . . 1 . . . 1 Sentry 9 | . . . . 1 1 4 . . 3 . Hunter 3 | . . . . . . . . . 3 . Programmer 8 | . . . . . . . . . 8 . Heavy 1 | . . . . . . . . 1 . . Best Kill Streak 6 | . 3 2 . 4 2 6 . 5 4 1 Combat Bots Only 5 | . 2 2 . 4 1 4 . 5 3 1 Max Kills in Single Turn 2 | . 1 1 . 1 1 2 . 1 2 1 Gunslinging . | . . . . . . . . . . . Exploded 1 | . . . . . . 1 . . . . Melee . | . . . . . . . . . . . Uniques/NPCs Destroyed . | . . . . . . . . . . . Combat | -11 -10 -10 -10 -9 -8 -8 -7 -7 -6 -5 -------- Run | Scr Mat Min Exi Min Mat Sto Fac DSF Fac Fac Damage Taken 6024 | . 76 25 . 131 46 390 . 422 3199 1735 Core 1709 | . 36 . . 14 11 86 . 108 444 1010 Absorbed by Shields . | . . . . . . . . . . . Regen/Repaired (Parts) 25 | . . . . . . . . . 25 . Core Remaining (%) 78 | 100 . . . 80 . 82 . 84 47 . Volleys Fired 244 | . 13 4 . 12 5 43 . 26 133 8 Largest 3 | . 2 2 . 1 1 1 . 1 3 1 Hottest 120 | . 60 65 . 120 120 120 . 120 120 81 Shots Fired 338 | . 24 8 . 12 5 43 . 26 212 8 Gun 163 | . 24 8 . 5 . . . 6 112 8 Cannon 164 | . . . . 7 5 32 . 20 100 . Launcher 11 | . . . . . . 11 . . . . Special . | . . . . . . . . . . . Kinetic 227 | . 13 4 . 5 . . . 6 193 6 Thermal 100 | . 11 4 . 7 5 32 . 20 19 2 Explosive 11 | . . . . . . 11 . . . . Electromagnetic . | . . . . . . . . . . . Robot Hit Streak 31 | . 19 27 . 31 9 24 . 17 16 11 Robot Miss Streak 3 | . 2 . . 1 . 1 . 1 3 1 Penetration Max 1 | . . . . . . . . . 1 . Secondary Targets 1 | . 1 . . . . . . . . . Max Gunslinging Chain 1 | . 1 . . . . . . . . . Shots Hit Robots 204 | . 20 8 . 10 4 33 . 21 103 5 Core Hits 108 | . 7 3 . 5 2 40 . 10 38 3 Critical Kills 1 | . . . . . . . . . 1 . Critical Parts Destroyed 1 | . . . . . . . . . 1 . Critical Strikes 6 | . . . . . . . . . 6 . Destroy 2 | . . . . . . . . . 2 . Blast 4 | . . . . . . . . . 4 . Melee Attacks . | . . . . . . . . . . . Impact . | . . . . . . . . . . . Slashing . | . . . . . . . . . . . Piercing . | . . . . . . . . . . . Sneak Attacks . | . . . . . . . . . . . Combat Hostiles . | . . . . . . . . . . . Follow-up Attacks . | . . . . . . . . . . . Damage Inflicted 6792 | . 186 116 . 313 151 1875 . 759 3283 109 Guns 1591 | . 186 112 . 72 . . . 84 1028 109 Cannons 4323 | . . . . 241 151 1017 . 675 2239 . Explosions 820 | . . . . . . 820 . . . . Melee . | . . . . . . . . . . . Ramming 58 | . . 4 . . . 38 . . 16 . Kinetic 2923 | . 75 67 . 72 . . . 84 2540 85 Thermal 2991 | . 111 45 . 241 151 1017 . 675 727 24 Explosive 820 | . . . . . . 820 . . . . Electromagnetic . | . . . . . . . . . . . Impact . | . . . . . . . . . . . Slashing . | . . . . . . . . . . . Piercing . | . . . . . . . . . . . Highest Corruption 24 | . . . . . . . . . 24 . Average Corruption 4 | . . . . . . . . . 4 . Corruption Purged . | . . . . . . . . . . . Corruption Blocked . | . . . . . . . . . . . Effects 61 | . . . . . . . . . 61 . Message Errors 16 | . . . . . . . . . 16 . Matter Fused 12 | . . . . . . . . . 12 . Heat Flow Errors 11 | . . . . . . . . . 11 . Energy Discharges 5 | . . . . . . . . . 5 . Parts Rejected 1 | . . . . . . . . . 1 . Data Loss (minor) 7 | . . . . . . . . . 7 . Misfires 3 | . . . . . . . . . 3 . Alerts 2 | . . . . . . . . . 2 . Weapon Failures 4 | . . . . . . . . . 4 . Overload Shots . | . . . . . . . . . . . Overflow Damage 203 | . . . . 18 . 24 . . 161 . Projectiles 200 | . . . . 18 . 21 . . 161 . Explosions 3 | . . . . . . 3 . . . . Melee . | . . . . . . . . . . . Knockbacks 9 | . . . . . . . . . 9 . Impact . | . . . . . . . . . . . Kinetic 9 | . . . . . . . . . 9 . Secondary . | . . . . . . . . . . . Self-Inflicted Damage 10 | . . . . . . 9 . . 1 . Shots 2 | . . . . . . 2 . . . . Rammed 6 | . . 1 . . . 2 . . 3 . Targets Rammed 6 | . . 1 . . . 2 . . 3 . Kicked . | . . . . . . . . . . . Crushed . | . . . . . . . . . . . Highest Temperature 633 | . 135 65 . 282 279 633 . 79 259 97 Average Temperature 112 | . 60 34 . 151 110 186 . 27 66 50 Received Heat Transfer 1374 | . 75 18 . . 9 198 . 261 153 660 Effects 16 | . . . . . . 16 . . . . Shutdowns 4 | . . . . . . 4 . . . . Energy Bleed 1 | . . . . . . 1 . . . . Interference 1 | . . . . . . 1 . . . . Short Circuit 5 | . . . . . . 5 . . . . Damage (major) 4 | . . . . . . 4 . . . . Damage (core) 1 | . . . . . . 1 . . . . Siege Activations . | . . . . . . . . . . . Robots Corrupted . | . . . . . . . . . . . Combat Hostiles . | . . . . . . . . . . . Parts Fried . | . . . . . . . . . . . Impact Corruptions . | . . . . . . . . . . . Robots Melted . | . . . . . . . . . . . Combat Hostiles . | . . . . . . . . . . . Parts Melted 19 | . 1 . . 2 . 9 . . 7 . Heat Transferred 6627 | . 250 100 . 560 320 2320 . 1520 1520 37 Parts Sabotaged . | . . . . . . . . . . . Parts Stolen . | . . . . . . . . . . . Parts Stripped . | . . . . . . . . . . . Power Chain Reactions . | . . . . . . . . . . . Missiles Intercepted . | . . . . . . . . . . . Alert | -11 -10 -10 -10 -9 -8 -8 -7 -7 -6 -5 ------- Run | Scr Mat Min Exi Min Mat Sto Fac DSF Fac Fac Peak Influence 497 | . 62 70 . 105 150 497 187 254 194 50 Initial 187 | . . 20 . . . 54 187 114 115 . Average 82 | . 22 46 . 38 22 335 187 211 54 11 Maximum Alert Level 2 | . . . . . . 2 . 1 . . Low Security (%) 89 | 100 100 100 . 100 100 21 100 30 100 100 Level 1 6 | . . . . . . 32 . 69 . . Level 2 4 | . . . . . . 46 . . . . Level 3 . | . . . . . . . . . . . Level 4 . | . . . . . . . . . . . Level 5 . | . . . . . . . . . . . High Security . | . . . . . . . . . . . Max Security . | . . . . . . . . . . . Squads Dispatched 22 | . 1 1 . . 1 5 . 1 11 2 Investigation 3 | . 1 1 . . . . . . . 1 Extermination 8 | . . . . . . . . . 8 . Reinforcement 7 | . . . . . . 2 . 1 3 1 Assault 1 | . . . . . 1 . . . . . Garrison 3 | . . . . . . 3 . . . . Intercept . | . . . . . . . . . . . Searches Triggered . | . . . . . . . . . . . Construction Impeded 1 | . . . . . . 1 . . . . Haulers Reinforced . | . . . . . . . . . . . Active Scanning Responses . | . . . . . . . . . . . Cargo Convoy Interrupts 1 | . . . . . . . . . 1 . Stealth | -11 -10 -10 -10 -9 -8 -8 -7 -7 -6 -5 --------- Run | Scr Mat Min Exi Min Mat Sto Fac DSF Fac Fac Distress Signals 6 | . . . . . 2 1 . . 1 2 Communications Jammed 38 | . . . . . . . . . 38 . Distress Signals 38 | . . . . . . . . . 38 . Times Spotted 90 | . 2 2 . 6 2 18 . 11 30 19 Peak Tracking Total 15 | . 2 1 . 4 2 3 . 4 4 15 Tactical Retreats 3 | . . . . . . 1 . . 2 . Traps | -11 -10 -10 -10 -9 -8 -8 -7 -7 -6 -5 ------- Run | Scr Mat Min Exi Min Mat Sto Fac DSF Fac Fac Traps Triggered 2 | . . . . . . . . 1 1 . Indirectly . | . . . . . . . . . . . Trap Hack Attempts . | . . . . . . . . . . . Triggered . | . . . . . . . . . . . Disarmed . | . . . . . . . . . . . Reprogrammed . | . . . . . . . . . . . Reused . | . . . . . . . . . . . Traps Extracted . | . . . . . . . . . . . Installed . | . . . . . . . . . . . Triggered 3 | . . . . . . . . . 3 . Machines | -11 -10 -10 -10 -9 -8 -8 -7 -7 -6 -5 ---------- Run | Scr Mat Min Exi Min Mat Sto Fac DSF Fac Fac Machines Disabled 3 | . . . . . 1 . . . 2 . Max in Single Turn 1 | . . . . . 1 . . . 1 . Garrison Access 1 | . . . . . 1 . . . . . Machines Sabotaged . | . . . . . . . . . . . Garrisons Compromised 1 | . . . . . . . . . 1 . Overloaded Fab Kills . | . . . . . . . . . . . Hacking | -11 -10 -10 -10 -9 -8 -8 -7 -7 -6 -5 --------- Run | Scr Mat Min Exi Min Mat Sto Fac DSF Fac Fac Machines Accessed 18 | . 3 1 5 1 1 2 1 . 3 1 Terminals 9 | . 3 . . . . 2 1 . 2 1 Fabricators . | . . . . . . . . . . . Repair Stations 1 | . . . . . . . . . 1 . Recycling Units 1 | . . . . . 1 . . . . . Scanalyzers . | . . . . . . . . . . . Garrison Access . | . . . . . . . . . . . Total Hacks 72 | . 8 1 50 1 2 2 1 . 4 3 Successful 68 | . 6 1 50 1 2 2 1 . 4 1 Failed 4 | . 2 . . . . . . . . 2 Catastrophic . | . . . . . . . . . . . Database Lockouts . | . . . . . . . . . . . Manual 4 | . 2 . 2 . . . . . . . Terminals 16 | . 8 . . . . 2 1 . 2 3 Fabricators . | . . . . . . . . . . . Repair Stations 2 | . . . . . . . . . 2 . Recycling Units 2 | . . . . . 2 . . . . . Scanalyzers . | . . . . . . . . . . . Garrison Access . | . . . . . . . . . . . Terminal Hacks 64 | . 6 1 50 1 . 2 1 . 2 1 Record 49 | . . . 49 . . . . . . . Open Door 4 | . . 1 . 1 . 2 . . . . Open DSF 2 | . . . . . . . 1 . 1 . Branch Access Points 1 | . 1 . . . . . . . . . Alert Level 4 | . 2 . . . . . . . 1 1 Reinforcement Status 1 | . 1 . . . . . . . . . Hauler Manifests 1 | . 1 . . . . . . . . . Zone Layout 1 | . 1 . . . . . . . . . EX-Prototype ID Bank 1 | . . . 1 . . . . . . . Fabricator Hacks . | . . . . . . . . . . . Repair Station Hacks 2 | . . . . . . . . . 2 . Scan Component 1 | . . . . . . . . . 1 . Repair 1 | . . . . . . . . . 1 . Recycling Unit Hacks 2 | . . . . . 2 . . . . . Report Inventory 1 | . . . . . 1 . . . . . Retrieve Components 1 | . . . . . 1 . . . . . Scanalyzer . | . . . . . . . . . . . Garrison Access Hacks . | . . . . . . . . . . . Unauthorized Hacks . | . . . . . . . . . . . Terminals . | . . . . . . . . . . . Fabricators . | . . . . . . . . . . . Repair Stations . | . . . . . . . . . . . Recycling Units . | . . . . . . . . . . . Scanalyzers . | . . . . . . . . . . . Garrison Access . | . . . . . . . . . . . Data Cores Recovered 1 | . . . . . . . . . 1 . Used 1 | . . . . . . . . . 1 . Hacking Detections 6 | . 2 . . . . . . . 3 1 Full Trace Events 2 | . 1 . . . . . . . . 1 Feedback Events . | . . . . . . . . . . . Feedback Blocked . | . . . . . . . . . . . Robot Schematics Acquired . | . . . . . . . . . . . Robots Built . | . . . . . . . . . . . Authchips . | . . . . . . . . . . . Time . | . . . . . . . . . . . Total Robot Build Rating . | . . . . . . . . . . . Part Schematics Acquired . | . . . . . . . . . . . Parts Built . | . . . . . . . . . . . Authchips . | . . . . . . . . . . . Time . | . . . . . . . . . . . Total Part Build Rating . | . . . . . . . . . . . Parts Repaired 1 | . . . . . . . . . 1 . Time 44 | . . . . . . . . . 44 . Parts Recycled . | . . . . . . . . . . . Recycled Matter . | . . . . . . . . . . . Retrieved Matter . | . . . . . . . . . . . Retrieved Components 1 | . . . . . 1 . . . . . Parts Scanalyzed . | . . . . . . . . . . . Part Schematics Acquired . | . . . . . . . . . . . Parts Damaged . | . . . . . . . . . . . Bothacking | -11 -10 -10 -10 -9 -8 -8 -7 -7 -6 -5 ------------ Run | Scr Mat Min Exi Min Mat Sto Fac DSF Fac Fac Used RIF Installer . | . . . . . . . . . . . Robots Hacked . | . . . . . . . . . . . Non-combat . | . . . . . . . . . . . Combat . | . . . . . . . . . . . Robot Hacks Applied . | . . . . . . . . . . . Relay Couplers Released 5 | . . . . . 3 . . . 2 . Machine Destruction 5 | . . . . . 3 . . . 2 . Fabnet Peak Effective % . | . . . . . . . . . . . Robots Rewired . | . . . . . . . . . . . Allies Hacked . | . . . . . . . . . . . Hacks Repelled . | . . . . . . . . . . . Allies | -11 -10 -10 -10 -9 -8 -8 -7 -7 -6 -5 -------- Run | Scr Mat Min Exi Min Mat Sto Fac DSF Fac Fac Total Allies 1 | . . . . 1 . . . . . . Largest Group 1 | . . . . 1 1 . . . . . Highest-Rated Group 31 | . . . . 31 31 . . . . . Highest-Rated Ally 31 | . . . . 31 31 . . . . . Total Orders 22 | . . . . 1 5 5 . 2 9 . EXPLORE 8 | . . . . . 2 2 . 1 3 . RETURN 14 | . . . . 1 3 3 . 1 6 . Ally Attacks 4 | . . . . 4 . . . . . . Total Damage 81 | . . . . 81 . . . . . . Kills 1 | . . . . 1 . . . . . . Allies Corrupted . | . . . . . . . . . . . Allies Melted . | . . . . . . . . . . . Intel | -11 -10 -10 -10 -9 -8 -8 -7 -7 -6 -5 ------- Run | Scr Mat Min Exi Min Mat Sto Fac DSF Fac Fac Robot Analysis Total . | . . . . . . . . . . . Derelict Logs Recovered . | . . . . . . . . . . . Drone Launches 154 | . . . . 20 33 21 . 20 60 . Drone Recoveries 145 | . . . . 20 33 21 . 20 51 . Exploration | -11 -10 -10 -10 -9 -8 -8 -7 -7 -6 -5 ------------- Run | Scr Mat Min Exi Min Mat Sto Fac DSF Fac Fac Turns Passed 7739 | 36 165 181 985 1205 503 598 203 312 3245 306 Spaces Moved 3447 | 39 153 116 624 535 283 270 84 106 1059 178 Core 51 | 24 . . . . . . . . 3 24 Treads 2666 | . . 107 624 488 283 270 84 106 704 . Legs . | . . . . . . . . . . . Wheels 224 | 15 153 9 . 47 . . . . . . Hover 506 | . . . . . . . . . 352 154 Flight . | . . . . . . . . . . . Fastest Speed 45 | 50 80 80 145 125 150 150 240 166 56 45 Average Speed 184 | 61 80 139 157 204 152 161 240 235 236 75 Slowest Speed 1200 | 80 80 145 225 225 155 320 240 246 1200 200 Overloaded Moves . | . . . . . . . . . . . Propulsion Burnouts . | . . . . . . . . . . . Robots Hopped . | . . . . . . . . . . . Cave-ins Triggered 4 | . . . . . . . . . 4 . Exploration Rate (%) 37 | 3 28 29 92 80 20 36 4 91 26 6 Regions Visited 10 Branch Regions 4 Pre-discovered Areas 1 | . . . 1 . . . . . . . Known Exits Taken 4 | . 1 . . . 1 . 1 . 1 . Unknown Exits Taken 5 | 1 . 1 1 1 . 1 . . . . Scrap Searched 1 | . . . . 1 . . . . . . Spaces Dug 61 | . . . . . . 1 . . 60 . Terrain Destroyed 162 | . . . . . . 86 . . 76 . Melee . | . . . . . . . . . . . Projectile 79 | . . . . . . 3 . . 76 . AOE 83 | . . . . . . 83 . . . . Terrain Rammed . | . . . . . . . . . . . Walls Destroyed . | . . . . . . . . . . . Machines Disabled . | . . . . . . . . . . . Actions | -11 -10 -10 -10 -9 -8 -8 -7 -7 -6 -5 --------- Run | Scr Mat Min Exi Min Mat Sto Fac DSF Fac Fac Total 4511 | 49 173 128 626 635 349 388 87 147 1589 340 Wait 644 | . . . . 73 33 66 . . 332 140 Move 3435 | 38 152 115 623 534 282 269 83 105 1056 178 Hop . | . . . . . . . . . . . Pick Up 69 | 5 7 2 1 5 15 2 . 4 22 6 Fast Attach 12 | 2 . . . 1 . . . 1 6 2 Attach 43 | 4 1 . . 1 6 . 3 3 19 6 Detach 1 | . . . . . . . 1 . . . Swap 21 | . . 3 1 3 4 4 . 2 4 . Drop 34 | . . 3 1 6 4 2 . 6 12 . Fire 244 | . 13 4 . 12 5 43 . 26 133 8 Melee . | . . . . . . . . . . . Ram 1 | . . . . . . . . . 1 . Kick . | . . . . . . . . . . . Crush 5 | . . 1 . . . 2 . . 2 . Escape Stasis 2 | . . . . . . . . . 2 . Rewire . | . . . . . . . . . . . Trap . | . . . . . . . . . . . Miscellaneous . | . . . . . . . . . . . Route ------- -11/Scrapyard -10/Materials -10/Mines -10/Exiles (discovered 2 exits: *Min x2) -9/Mines (discovered 2 exits: *Mat x2) -8/Materials (discovered 2 exits: *Sto x2) -8/Storage -7/Factory -7/DSF -6/Factory -5/Factory History --------- Turn | Location | Event 9 | -11/Scrapyard | Discovered new exit (range 15) 37 | -11/Scrapyard | Entered Materials 100 | -10/Materials | Identified exit to Mines 202 | -10/Materials | Entered Mines 206 | -10/Mines | Met a Derelict shopkeep closing up shop 317 | -10/Mines | Build established: Mutant 376 | -10/Mines | Deemed a non-threat by the Exiles lab entrance 376 | -10/Mines | Discovered new exit (range 5) 383 | -10/Mines | Entered Exiles 407 | -10/Exiles | Discovered new exit (range 15) 436 | -10/Exiles | Met 8R-AWN 459 | -10/Exiles | Met EX-HEX 534 | -10/Exiles | Met EX-DEC 579 | -10/Exiles | Visited The Gauntlet 811 | -10/Exiles | Learned location of Zion (-7) 884 | -10/Exiles | Discovered new exit (range 14) 971 | -10/Exiles | Met EX-BIN 1097 | -10/Exiles | Aligned with FarCom system 1098 | -10/Exiles | Given EX-Vault access code 1132 | -10/Exiles | Opened EX-Vault 1145 | -10/Exiles | Found Prototype Energy Cannon 1146 | -10/Exiles | Identified Gui. Plasma Cannon 1202 | -10/Exiles | Warned to stay clear of 0b10 Research branches 1368 | -10/Exiles | Left Exiles lab with Gui. Plasma Cannon 1368 | -10/Exiles | Entered Mines 1766 | -9/Mines | Received a Rocket Launcher from a helpful Derelict 2060 | -9/Mines | Found the Drone Emporium 2073 | -9/Mines | Found Prototype Device 2076 | -9/Mines | Identified Sensor Drone Bay 2221 | -9/Mines | Discovered new exit (range 8) 2282 | -9/Mines | Discovered new exit (range 11) 2364 | -9/Mines | Received a Mining Laser from a helpful Derelict 2573 | -9/Mines | Entered Materials 2573 | -8/Materials | Accompanied by 1 ally 2573 | -8/Materials | Evolved 4 slots: Power x1, Propulsion x1, Utility x2 2739 | -8/Materials | Discovered new exit (range 27) 2814 | -8/Materials | Discovered new exit (range 16) 2874 | -8/Materials | Identified exit to Storage 3076 | -8/Materials | Entered Storage 3168 | -8/Storage | Garrison activated, responded to threat 3624 | -8/Storage | Discovered new exit (range 8) 3674 | -8/Storage | Entered Factory 3674 | -7/Factory | Evolved 2 slots: Utility x2 3767 | -7/Factory | Identified exit to DSF 3877 | -7/Factory | Entered DSF 3914 | -7/DSF | Additional patrols routed to DSF 3959 | -7/DSF | Found Prototype Device 4026 | -7/DSF | Build established: Scavenger-Mutant 4145 | -7/DSF | Discovered new exit (range 15) 4189 | -7/DSF | Entered Factory 4189 | -6/Factory | Evolved 2 slots: Utility x1, Weapon x1 4490 | -6/Factory | Build established: Scavenger-Skirmisher 5031 | -6/Factory | Cargo convoy interrupted 6074 | -6/Factory | Build established: Infiltrator-Mutant 6161 | -6/Factory | Lost 6 parts (2p1n2u1w) 6408 | -6/Factory | Repaired Adv. ECM Suite 6711 | -6/Factory | Build established: Skirmisher 7191 | -6/Factory | Build established: Scavenger-Skirmisher 7270 | -6/Factory | Crushed by falling debris 7281 | -6/Factory | Crushed by falling debris 7281 | -6/Factory | System corruption reached 10% 7287 | -6/Factory | Crushed by falling debris 7303 | -6/Factory | Crushed by falling debris 7319 | -6/Factory | Identified Active Sensor Suite 7334 | -6/Factory | Lost 9 parts (1p3n5u) 7418 | -6/Factory | Discovered new exit (range 6) 7418 | -6/Factory | Identified exit to Factory 7430 | -6/Factory | Core integrity fell below 50% 7434 | -6/Factory | Entered another Factory area 7434 | -5/Factory | Evolved 2 slots: Propulsion x1, Utility x1 7462 | -5/Factory | Lost 3 parts (1p1u1w) 7696 | -5/Factory | Spotted B-75 Beast 7716 | -5/Factory | Core integrity fell below 50% 7737 | -5/Factory | Core integrity fell below 20% 7740 | -5/Factory | Destroyed by G-50 Soldier with Heavy Laser Last Messages --------------- 07712_ Slug penetrates Wall. 07712_ Penetrated by Slug. 07715_ Acquired Wave Gun. 07716_ Acquired Coil Gun. 07718_ Slug penetrates Y-64 Sentinel. 07719_ Slug penetrates Wall. 07721_ Slug penetrates Y-64 Sentinel. 07724_ Slug penetrates Wall. 07728_ Heat Sink destroyed. 07729_ Slug penetrates Wall. 07732_ L-41 Fighter destroyed. 07732_ Critical hit (Burn: +37). 07732_ Penetrated by Slug. 07733_ Acquired 51 matter. 07735_ Penetrated by Slug. 07735_ Coil Gun destroyed. 07736_ Acquired Imp. Deuterium Engine. 07737_ Penetrated by Slug. 07739_ Wave Gun destroyed. 07739_ Terminal disabled. Map ----- +----------------------------------------------------+ | ?????????????????????????????????? #????????????? | | ??????????????????????????+####??# #????????????? | | ????????????????????????? !? #???########## | | ?????????????????????????? #???# | | ?????????????????????????? " #???# | | ?????????????????????????""" "G" #???# """""" | | ?????????????????????????""" " " #???# """""" | | ????????????????# ???????""" #???# """""" | | ????????????????# ???""""""" #???# """"""" | | ????????????????# """"""""" ! ###?# "%" | | ????????????????# """"""""" =% ""#?# """"""" | | ????????????????# w * ""#?# """""" | | ????????????????# """ T"#?# """""" | | ????????????????# """ ""#?# """""" | | ????????????????# """ ! ""#?# | | ?????????######## BB w #########+#+## | | ?????????# BB % | | ?????????# % | | ?????????# | | ?????????# u | | ?????? | | ?????????????#######g;##;;;######+########### | | ???????????????????# gg #?????????????????# | | ???????????????????# hgg [#?????????????????# | | ???????????????????# g [ #?????????????????# | | ???????????????????# g @#?????????????????# | | ???????????????????# g /%#?????????????????# | | ???????????????????# !#?????????????????# | | ???????????????????# #?????????????????###### | | ???????????????????# #?????????????????????# | | ???????????????????# " #?????????????????????# | | ???????????????????#""" #?????????????????????# | | ???????????????????#"T #?????????????????????# | | ???????????????????#""" #?????????????????????# | | ???????????????????# "" Y#?????????????????????# | | ???????????????????# #?????????????????????# | | ????????????????????##### #?????????????????????# | | ?????????????????????????##?????????????????????# | | ????????????????????????????????????????????????# | | ????????????????????????????????????????????????# | | ????????????????????????????????????????????????# | | ????????????????????????????????????????????????## | | ?????????????????????????????????????????????????? | | ?????????????????????????????????????????????????? | | ?????????????????????????????????????????????????? | | ?????????????????????????????????????????????????? | | ?????????????????????????????????????????????????? | | ?????????????????????????????????????????????????? | | ?????????????????????????????????????????????????? | | ?????????????????????????????????????????????????? | +----------------------------------------------------+ Best States ------------- Heat Dissipation 51 Energy Generation 31 Energy Capacity 500 Matter Stores 367 Matter Capacity 500 Sight Range 16 Robot Scan Range 20 Terrain Scan Range 16 Terrain Scan Density 10 ECM Strength 2 Jamming Range 12 Resistance: KI 40 Resistance: TH 20 Resistance: EX 20 Resistance: EM 20 Resistance: I 20 Resistance: S 20 Resistance: P 20 Evasion (%) 56 Recoil Reduction 3 Energy Filtering 30 Particle Charging 15 Offensive Hacking 10 Defensive Hacking 10 Item Schematics ----------------- None Robot Schematics ------------------ None Fabricated ------------ Nothing Alien Tech Used ----------------- None Achievements -------------- None Challenges ------------ None Game ------ Seed MasterWarpStorm Manual? 0 Play Time 01:42:12 Cumulative 40.5 hours Start 2022.09.20 @ 17:18:20 End 2022.09.20 @ 21:02:40 Sessions 7 Manual Loads 0 Difficulty Adventurer Special Mode None Game No. 48 Rogue 17 Adventurer 31 Explorer 0 Win Type - Total 0 Types 0/0/0/0/0/0/0/0/0 Lore% 17 Gallery% 41 Achievement% 32 Wizard Run 0 Options --------- ASCII 0 Keyboard 0 Movement Mouse Keybinds 0 Fullscreen 1 Font 24/Proggy Map View 76x50 Tactical HUD 1 Map Filters NONE Filters NONE Steam 1 RUN: bcc0690a-87b3-4bce-bce1-713aec961321